[Event "*** Titled Tuesday 3|2 Blitz"]
[Site "Chess.com"]
[Date "2015.02.24"]
[Round "4"]
[White "Hafez_Bakr"]
[Black "Argente"]
[Result "0-1"]
[WhiteElo "1832"]
[BlackElo "2194"]
[TimeControl "180+2"]
[EndTime "11:48:08 PST"]
[Termination "Argente won by resignation"]

1. c4 {[%clk 0:02:59.9]} 1... g6 {[%clk 0:02:58.6]} 2. Nc3 {[%clk 0:03:00.7]}
2... Bg7 {[%clk 0:03:00.1]} 3. Nf3 {[%clk 0:03:01.4]} 3... e5 {[%clk 0:03:00.3]}
4. g3 {[%clk 0:03:01.9]} 4... Ne7 {[%clk 0:02:59.7]} 5. Bg2 {[%clk 0:03:03]}
5... c6 {[%clk 0:03:00.7]} 6. O-O {[%clk 0:03:00.9]} 6... d5 {[%clk 0:03:00.4]}
7. cxd5 {[%clk 0:03:01.4]} 7... cxd5 {[%clk 0:03:02.3]} 8. e4 {[%clk 0:02:56.3]}
8... d4 {[%clk 0:03:00]} 9. Nb1 {[%clk 0:02:51]} 9... O-O {[%clk 0:02:57.5]} 10.
d3 {[%clk 0:02:52]} 10... Nbc6 {[%clk 0:02:54.5]} 11. Bg5 {[%clk 0:02:49.1]}
11... h6 {[%clk 0:02:51.4]} 12. Bd2 {[%clk 0:02:48.8]} 12... Be6 {[%clk
0:02:45.1]} 13. Na3 {[%clk 0:02:45.8]} 13... Rc8 {[%clk 0:02:41.9]} 14. b3
{[%clk 0:02:46.6]} 14... a6 {[%clk 0:02:38.8]} 15. Rc1 {[%clk 0:02:41.8]} 15...
b5 {[%clk 0:02:32.2]} 16. Rc2 {[%clk 0:02:41.2]} 16... Qd6 {[%clk 0:02:24.6]}
17. Nb1 {[%clk 0:02:39.7]} 17... Nb4 {[%clk 0:02:25.2]} 18. Rxc8 {[%clk
0:02:39.4]} 18... Rxc8 {[%clk 0:02:27.1]} 19. a3 {[%clk 0:02:39.3]} 19... Nxd3
{[%clk 0:02:17.7]} 20. Bxh6 {[%clk 0:02:40.1]} 20... Nxf2 {[%clk 0:02:10.7]} 21.
Rxf2 {[%clk 0:02:40.7]} 21... Bxh6 {[%clk 0:02:11.3]} 22. Rf1 {[%clk 0:02:41]}
22... Be3+ {[%clk 0:02:08.7]} 23. Kh1 {[%clk 0:02:41.3]} 23... Rc1 {[%clk
0:02:04.5]} 24. Qd3 {[%clk 0:02:40.2]} 24... Rxf1+ {[%clk 0:01:59.3]} 25. Bxf1
{[%clk 0:02:40.7]} 25... f6 {[%clk 0:01:52.7]} 26. Ne1 {[%clk 0:02:36.9]} 26...
Kg7 {[%clk 0:01:48.1]} 27. Nc2 {[%clk 0:02:36.3]} 27... Bg5 {[%clk 0:01:43.8]}
28. Bg2 {[%clk 0:02:33.8]} 28... Ng8 {[%clk 0:01:34.3]} 29. h4 {[%clk
0:02:34.1]} 29... Bh6 {[%clk 0:01:34.2]} 30. b4 {[%clk 0:02:26.8]} 30... Bc4
{[%clk 0:01:31.2]} 31. Qf3 {[%clk 0:02:25.3]} 31... Ne7 {[%clk 0:01:18.2]} 32.
Qg4 {[%clk 0:02:23.3]} 32... d3 {[%clk 0:01:14.7]} 33. Ne3 {[%clk 0:02:23.8]}
33... Bxe3 {[%clk 0:01:14.4]} 34. h5 {[%clk 0:02:24.2]} 34... d2 {[%clk
0:01:11.6]} 35. Bf3 {[%clk 0:02:23]} 35... Bb3 {[%clk 0:01:07.9]} 36. Nc3 {[%clk
0:02:19.7]} 36... Bg5 {[%clk 0:00:58.6]} 37. hxg6 {[%clk 0:02:19.1]} 37... Qd3
{[%clk 0:00:55]} 38. Nd1 {[%clk 0:02:10.4]} 38... Nxg6 {[%clk 0:00:49.5]} 39.
Kh2 {[%clk 0:02:09.8]} 39... Bxd1 {[%clk 0:00:43.1]} 40. Bxd1 {[%clk 0:02:09.7]}
40... Ne7 {[%clk 0:00:34.1]} 41. Kh3 {[%clk 0:02:08.8]} 41... Qd6 {[%clk
0:00:29]} 42. Qf3 {[%clk 0:02:05.2]} 42... Nc6 {[%clk 0:00:28.2]} 43. g4 {[%clk
0:02:01.5]} 43... Nd4 {[%clk 0:00:26.3]} 44. Qd3 {[%clk 0:02:02.1]} 44... Qd8
{[%clk 0:00:24.5]} 45. Kg3 {[%clk 0:01:59.7]} 45... Ne6 {[%clk 0:00:25.3]} 46.
Qxd8 {[%clk 0:01:58.9]} 46... Nxd8 {[%clk 0:00:26.1]} 47. Kf3 {[%clk 0:02:00.1]}
47... Ne6 {[%clk 0:00:27.1]} 48. Ke2 {[%clk 0:02:01.3]} 48... Nd4+ {[%clk
0:00:26.9]} 49. Kd3 {[%clk 0:02:01.8]} 49... Kf7 {[%clk 0:00:27.9]} 50. Kc3
{[%clk 0:02:00.9]} 50... Ke7 {[%clk 0:00:29]} 51. a4 {[%clk 0:01:59.2]} 51...
Kd6 {[%clk 0:00:28.6]} 52. axb5 {[%clk 0:01:59.4]} 52... axb5 {[%clk 0:00:28.6]}
53. Kd3 {[%clk 0:02:00]} 53... Nc6 {[%clk 0:00:26.7]} 54. Kc3 {[%clk 0:02:00.3]}
54... Be3 {[%clk 0:00:26.2]} 55. Kb3 {[%clk 0:02:00]} 55... Nd4+ {[%clk
0:00:25]} 56. Kc3 {[%clk 0:02:00.2]} 56... Ne6 {[%clk 0:00:24.8]} 57. Kd3 {[%clk
0:02:00.3]} 57... Bf4 {[%clk 0:00:23.5]} 58. Kc3 {[%clk 0:01:59.4]} 58... Ke7
{[%clk 0:00:21.8]} 59. Kd3 {[%clk 0:02:00.4]} 59... Kf7 {[%clk 0:00:22.6]} 60.
Bb3 {[%clk 0:02:00.1]} 60... Ke7 {[%clk 0:00:22.2]} 61. Bd1 {[%clk 0:02:00.2]}
61... Nd4 {[%clk 0:00:23]} 62. Kc3 {[%clk 0:01:59]} 62... Kf7 {[%clk 0:00:23.8]}
63. Kd3 {[%clk 0:02:00]} 63... Kg6 {[%clk 0:00:24.6]} 64. Kc3 {[%clk 0:02:00.4]}
64... Kg5 {[%clk 0:00:25.9]} 65. Kd3 {[%clk 0:02:01.4]} 65... Kh4 {[%clk
0:00:27.4]} 66. Kc3 {[%clk 0:02:01.7]} 66... Kg3 {[%clk 0:00:28.8]} 67. Kd3
{[%clk 0:02:00.6]} 67... Kf2 {[%clk 0:00:29.5]} 68. g5 {[%clk 0:01:53.5]} 68...
fxg5 {[%clk 0:00:28.1]} 69. Bg4 {[%clk 0:01:53.7]} 69... Ke1 {[%clk 0:00:26.8]}
70. Bh5 {[%clk 0:01:51.3]} 70... d1=Q+ {[%clk 0:00:26.9]} 71. Bxd1 {[%clk
0:01:52.3]} 71... Kxd1 {[%clk 0:00:28.8]} 72. Kc3 {[%clk 0:01:53.1]} 72... g4
{[%clk 0:00:30.5]} 0-1

[Event "*** Titled Tuesday 3|2 Blitz"]
[Site "Chess.com"]
[Date "2015.02.24"]
[Round "4"]
[White "bugsbunny444"]
[Black "Zvonokchess"]
[Result "1-0"]
[WhiteElo "2351"]
[BlackElo "2487"]
[TimeControl "180+2"]
[EndTime "11:48:18 PST"]
[Termination "bugsbunny444 won by resignation"]

1. Nf3 {[%clk 0:03:00]} 1... c5 {[%clk 0:02:58.8]} 2. c4 {[%clk 0:02:58.9]} 2...
g6 {[%clk 0:03:00]} 3. d4 {[%clk 0:02:59.4]} 3... cxd4 {[%clk 0:03:00.1]} 4.
Nxd4 {[%clk 0:02:59.8]} 4... Nf6 {[%clk 0:03:01.3]} 5. Nc3 {[%clk 0:03:00.5]}
5... d5 {[%clk 0:03:02.5]} 6. cxd5 {[%clk 0:02:26.4]} 6... Nxd5 {[%clk
0:03:03.5]} 7. Ndb5 {[%clk 0:02:06.7]} 7... Nxc3 {[%clk 0:03:03.6]} 8. Qxd8+
{[%clk 0:02:07.3]} 8... Kxd8 {[%clk 0:03:05.5]} 9. Nxc3 {[%clk 0:02:08.4]} 9...
Bg7 {[%clk 0:03:06.8]} 10. Bf4 {[%clk 0:01:56.6]} 10... Bxc3+ {[%clk 0:03:07.3]}
11. bxc3 {[%clk 0:01:57.3]} 11... Nc6 {[%clk 0:03:08.2]} 12. O-O-O+ {[%clk
0:01:52.9]} 12... Ke8 {[%clk 0:03:09.5]} 13. e4 {[%clk 0:01:50.2]} 13... Be6
{[%clk 0:03:10.5]} 14. Kb2 {[%clk 0:01:39.3]} 14... f6 {[%clk 0:03:10.8]} 15.
Bb5 {[%clk 0:01:36.2]} 15... Rc8 {[%clk 0:03:11.9]} 16. Ba4 {[%clk 0:01:24.9]}
16... Kf7 {[%clk 0:03:11.8]} 17. Bb3 {[%clk 0:01:25.4]} 17... Na5 {[%clk
0:03:04.1]} 18. Rd4 {[%clk 0:01:15.4]} 18... Rc6 {[%clk 0:02:15.2]} 19. Bd5
{[%clk 0:00:52.7]} 19... Rb6+ {[%clk 0:01:58]} 20. Rb4 {[%clk 0:00:53.8]} 20...
Bxd5 {[%clk 0:01:47.6]} 21. exd5 {[%clk 0:00:49.3]} 21... Rc8 {[%clk 0:01:45.6]}
22. Rd1 {[%clk 0:00:38.6]} 22... Nc4+ {[%clk 0:01:43.2]} 23. Kb3 {[%clk
0:00:35.1]} 23... Na5+ {[%clk 0:01:41.5]} 24. Kb2 {[%clk 0:00:35.6]} 24... Rxb4+
{[%clk 0:01:21]} 25. cxb4 {[%clk 0:00:36.7]} 25... Nc4+ {[%clk 0:01:22.6]} 26.
Kb3 {[%clk 0:00:35.1]} 26... Nb6 {[%clk 0:01:23.8]} 27. Be3 {[%clk 0:00:30.9]}
27... Ke8 {[%clk 0:01:14.1]} 28. Bxb6 {[%clk 0:00:29.8]} 28... axb6 {[%clk
0:01:15.1]} 29. Re1 {[%clk 0:00:12.5]} 29... e5 {[%clk 0:00:41.4]} 30. dxe6
{[%clk 0:00:11.2]} 30... Ke7 {[%clk 0:00:42.9]} 31. Re2 {[%clk 0:00:07.7]} 31...
Rc6 {[%clk 0:00:38.2]} 32. Ka4 {[%clk 0:00:07.6]} 32... Rd6 {[%clk 0:00:29]} 33.
Kb5 {[%clk 0:00:08]} 33... Rc6 {[%clk 0:00:30]} 34. g4 {[%clk 0:00:06.8]} 34...
g5 {[%clk 0:00:30.3]} 35. h3 {[%clk 0:00:04.8]} 35... Rd6 {[%clk 0:00:31.1]} 36.
a4 {[%clk 0:00:05.8]} 36... Rc6 {[%clk 0:00:31.4]} 37. Re4 {[%clk 0:00:06.6]}
37... Rd6 {[%clk 0:00:28.7]} 38. Re3 {[%clk 0:00:06.7]} 38... Rd4 {[%clk
0:00:27.4]} 39. Re2 {[%clk 0:00:03.8]} 39... Rf4 {[%clk 0:00:27.8]} 40. Re3
{[%clk 0:00:03.7]} 40... Rd4 {[%clk 0:00:28.6]} 41. Re2 {[%clk 0:00:04.3]} 41...
Rf4 {[%clk 0:00:29.9]} 42. Re3 {[%clk 0:00:05.6]} 42... Rd4 {[%clk 0:00:24.7]}
43. Rb3 {[%clk 0:00:03.8]} 43... Rd6 {[%clk 0:00:22.9]} 44. Re3 {[%clk
0:00:04.3]} 44... Rd4 {[%clk 0:00:24.3]} 45. Rb3 {[%clk 0:00:04.1]} 45... Rd6
{[%clk 0:00:25.5]} 46. Re3 {[%clk 0:00:05.1]} 46... Rd4 {[%clk 0:00:26.7]} 47.
Rc3 {[%clk 0:00:05.3]} 47... Kxe6 {[%clk 0:00:22.8]} 48. Rc7 {[%clk 0:00:06.4]}
48... h5 {[%clk 0:00:23.5]} 49. gxh5 {[%clk 0:00:07.8]} 49... Rh4 {[%clk
0:00:24.6]} 50. Rxb7 {[%clk 0:00:06.1]} 50... Rxh5 {[%clk 0:00:26]} 51. Kxb6
{[%clk 0:00:07.2]} 51... Rxh3 {[%clk 0:00:25.9]} 52. a5 {[%clk 0:00:08.2]} 52...
Ra3 {[%clk 0:00:26.6]} 53. a6 {[%clk 0:00:09.1]} 53... f5 {[%clk 0:00:28.2]} 54.
a7 {[%clk 0:00:10]} 54... g4 {[%clk 0:00:30.1]} 55. Rb8 {[%clk 0:00:10.9]} 55...
f4 {[%clk 0:00:31.7]} 56. a8=Q {[%clk 0:00:11.8]} 56... Rxa8 {[%clk 0:00:33.6]}
57. Rxa8 {[%clk 0:00:13.6]} 57... g3 {[%clk 0:00:35.5]} 58. fxg3 {[%clk
0:00:14.3]} 58... fxg3 {[%clk 0:00:37.4]} 59. Rg8 {[%clk 0:00:15.1]} 1-0

[Event "*** Titled Tuesday 3|2 Blitz"]
[Site "Chess.com"]
[Date "2015.02.24"]
[Round "4"]
[White "AkshatChandra"]
[Black "tac49"]
[Result "1-0"]
[WhiteElo "2428"]
[BlackElo "2389"]
[TimeControl "180+2"]
[EndTime "11:48:31 PST"]
[Termination "AkshatChandra won by resignation"]

1. e4 {[%clk 0:03:00]} 1... e5 {[%clk 0:02:56.1]} 2. Nf3 {[%clk 0:03:00.4]} 2...
Nc6 {[%clk 0:02:57.5]} 3. Bb5 {[%clk 0:03:01]} 3... a6 {[%clk 0:02:56.6]} 4. Ba4
{[%clk 0:03:01.9]} 4... Nf6 {[%clk 0:02:57.2]} 5. O-O {[%clk 0:03:02.5]} 5...
Be7 {[%clk 0:02:57.2]} 6. Re1 {[%clk 0:03:03.3]} 6... b5 {[%clk 0:02:57.5]} 7.
Bb3 {[%clk 0:03:04]} 7... d6 {[%clk 0:02:59]} 8. c3 {[%clk 0:03:04.9]} 8... O-O
{[%clk 0:02:59.6]} 9. h3 {[%clk 0:03:05.8]} 9... Na5 {[%clk 0:02:57.4]} 10. Bc2
{[%clk 0:03:06.4]} 10... c5 {[%clk 0:02:58.9]} 11. d4 {[%clk 0:03:07.1]} 11...
Qc7 {[%clk 0:02:59.6]} 12. d5 {[%clk 0:03:08.4]} 12... Nc4 {[%clk 0:02:46.9]}
13. a4 {[%clk 0:03:05.5]} 13... Bd7 {[%clk 0:02:45.7]} 14. b3 {[%clk 0:02:51.5]}
14... Nb6 {[%clk 0:02:41]} 15. a5 {[%clk 0:02:48.5]} 15... Nc8 {[%clk
0:02:41.1]} 16. Nbd2 {[%clk 0:02:44.2]} 16... Re8 {[%clk 0:02:35]} 17. Nf1
{[%clk 0:02:42.6]} 17... Bf8 {[%clk 0:02:36.2]} 18. Bg5 {[%clk 0:02:39.3]} 18...
Be7 {[%clk 0:02:33.2]} 19. Qd2 {[%clk 0:02:20.6]} 19... Kh8 {[%clk 0:02:33.1]}
20. Be3 {[%clk 0:02:16.2]} 20... Bf8 {[%clk 0:02:12.2]} 21. g4 {[%clk
0:02:14.2]} 21... Ne7 {[%clk 0:02:07.2]} 22. Ng3 {[%clk 0:02:13.1]} 22... g6
{[%clk 0:01:58.6]} 23. Nh2 {[%clk 0:02:11.3]} 23... Bg7 {[%clk 0:01:57.1]} 24.
Rf1 {[%clk 0:02:09.1]} 24... Nfg8 {[%clk 0:01:34.9]} 25. Ra2 {[%clk 0:01:43.2]}
25... Rf8 {[%clk 0:01:13]} 26. f4 {[%clk 0:01:40.9]} 26... exf4 {[%clk
0:01:14.9]} 27. Bxf4 {[%clk 0:01:38.1]} 27... f5 {[%clk 0:00:59]} 28. gxf5
{[%clk 0:01:30.5]} 28... gxf5 {[%clk 0:00:59.5]} 29. Nh5 {[%clk 0:01:20.5]}
29... Ng6 {[%clk 0:00:41.1]} 30. Nxg7 {[%clk 0:01:11.2]} 30... Kxg7 {[%clk
0:00:43]} 31. e5 {[%clk 0:00:27.4]} 31... dxe5 {[%clk 0:00:38.6]} 32. d6 {[%clk
0:00:26.9]} 32... Qc6 {[%clk 0:00:28]} 33. Bg5 {[%clk 0:00:23.9]} 33... Nf6
{[%clk 0:00:27.9]} 34. Bh6+ {[%clk 0:00:22.3]} 34... Kg8 {[%clk 0:00:28]} 35.
Bxf8 {[%clk 0:00:23.4]} 35... Rxf8 {[%clk 0:00:29.9]} 36. Bxf5 {[%clk
0:00:22.6]} 36... Ne4 {[%clk 0:00:17.2]} 37. Bxe4 {[%clk 0:00:17.8]} 37... Rxf1+
{[%clk 0:00:19.1]} 38. Nxf1 {[%clk 0:00:15.6]} 38... Qxe4 {[%clk 0:00:21]} 39.
Qg2 {[%clk 0:00:15.5]} 39... Qb1 {[%clk 0:00:14.6]} 40. Rf2 {[%clk 0:00:16.5]}
40... Kh8 {[%clk 0:00:11.2]} 41. Qa8+ {[%clk 0:00:16.7]} 41... Kg7 {[%clk
0:00:05.5]} 42. Qb7 {[%clk 0:00:18.1]} 42... Nf8 {[%clk 0:00:04.1]} 43. Rxf8
{[%clk 0:00:18.5]} 43... Qg6+ {[%clk 0:00:03.1]} 44. Kh2 {[%clk 0:00:14.3]}
44... Qc2+ {[%clk 0:00:02.6]} 45. Kg1 {[%clk 0:00:13]} 45... Qg6+ {[%clk
0:00:02.2]} 46. Kh1 {[%clk 0:00:09.8]} 46... Kxf8 {[%clk 0:00:02.2]} 47. Qxd7
{[%clk 0:00:10.9]} 47... Qe4+ {[%clk 0:00:03.6]} 48. Kg1 {[%clk 0:00:12.2]}
48... Qg6+ {[%clk 0:00:03.5]} 49. Qg4 {[%clk 0:00:13.4]} 49... Qxd6 {[%clk
0:00:03.1]} 50. Qf5+ {[%clk 0:00:14.5]} 50... Ke7 {[%clk 0:00:04]} 51. Qxh7+
{[%clk 0:00:15.3]} 1-0

[Event "*** Titled Tuesday 3|2 Blitz"]
[Site "Chess.com"]
[Date "2015.02.24"]
[Round "4"]
[White "LADIESGET2KNOWME"]
[Black "LuckyTiger"]
[Result "1-0"]
[WhiteElo "2303"]
[BlackElo "2458"]
[TimeControl "180+2"]
[EndTime "11:49:00 PST"]
[Termination "LADIESGET2KNOWME won by resignation"]

1. d4 {[%clk 0:03:00]} 1... Nf6 {[%clk 0:02:59]} 2. Nc3 {[%clk 0:03:00.2]} 2...
d5 {[%clk 0:02:59.6]} 3. Bg5 {[%clk 0:03:01.6]} 3... Nbd7 {[%clk 0:03:00.7]} 4.
Qd3 {[%clk 0:03:00.9]} 4... h6 {[%clk 0:02:59.7]} 5. Bh4 {[%clk 0:03:00.8]} 5...
c6 {[%clk 0:03:01]} 6. Nf3 {[%clk 0:03:01.4]} 6... Qa5 {[%clk 0:02:33.9]} 7. a3
{[%clk 0:02:52.8]} 7... b5 {[%clk 0:02:32.4]} 8. b4 {[%clk 0:02:49.2]} 8... Qb6
{[%clk 0:02:30.7]} 9. e4 {[%clk 0:02:50.5]} 9... dxe4 {[%clk 0:02:31.6]} 10.
Nxe4 {[%clk 0:02:51]} 10... Nxe4 {[%clk 0:02:27.4]} 11. Qxe4 {[%clk 0:02:51.9]}
11... a5 {[%clk 0:02:28.3]} 12. Rb1 {[%clk 0:02:34.3]} 12... axb4 {[%clk
0:02:28.3]} 13. axb4 {[%clk 0:02:36.2]} 13... e6 {[%clk 0:01:56.9]} 14. Bd3
{[%clk 0:02:32.4]} 14... Bxb4+ {[%clk 0:01:48.9]} 15. Ke2 {[%clk 0:02:07.9]}
15... Bd6 {[%clk 0:01:49.5]} 16. Rxb5 {[%clk 0:02:00.7]} 16... cxb5 {[%clk
0:01:50.6]} 17. Qxa8 {[%clk 0:02:00.3]} 17... Bb8 {[%clk 0:01:15.2]} 18. Rb1
{[%clk 0:01:48.1]} 18... Bb7 {[%clk 0:01:16.2]} 19. Qa3 {[%clk 0:01:20.8]} 19...
Bd6 {[%clk 0:00:51.1]} 20. Bxb5 {[%clk 0:01:04.8]} 20... O-O {[%clk 0:00:45.2]}
21. Bxd7 {[%clk 0:00:31.6]} 21... Ba6+ {[%clk 0:00:20.5]} 22. Kd2 {[%clk
0:00:20.6]} 22... Bf4+ {[%clk 0:00:17.4]} 23. Kc3 {[%clk 0:00:15.2]} 23... Qc7+
{[%clk 0:00:17.7]} 24. Kb2 {[%clk 0:00:08.8]} 24... Rb8+ {[%clk 0:00:19]} 25.
Ka1 {[%clk 0:00:06.4]} 25... Ra8 {[%clk 0:00:20.1]} 26. Ba4 {[%clk 0:00:06.1]}
26... Bd6 {[%clk 0:00:20.8]} 27. Bg3 {[%clk 0:00:06.4]} 27... Bxg3 {[%clk
0:00:15.6]} 28. hxg3 {[%clk 0:00:06.1]} 28... Bb7 {[%clk 0:00:14.4]} 29. Rb4
{[%clk 0:00:04.6]} 29... Be4 {[%clk 0:00:07.6]} 30. c3 {[%clk 0:00:02.8]} 30...
Qe7 {[%clk 0:00:07.5]} 31. Kb2 {[%clk 0:00:03.7]} 31... Qf6 {[%clk 0:00:08.1]}
32. Qb3 {[%clk 0:00:03.7]} 32... Kh7 {[%clk 0:00:08.2]} 33. Qd1 {[%clk
0:00:03.2]} 33... Bxf3 {[%clk 0:00:04.1]} 34. Qxf3 {[%clk 0:00:03.7]} 34... Qg5
{[%clk 0:00:05.9]} 35. Qd3+ {[%clk 0:00:04.7]} 35... g6 {[%clk 0:00:06.9]} 36.
Bc2 {[%clk 0:00:06]} 36... Qd5 {[%clk 0:00:08]} 37. Qc4 {[%clk 0:00:06.6]} 37...
Qxg2 {[%clk 0:00:09.2]} 38. Qb3 {[%clk 0:00:08.5]} 38... Qxf2 {[%clk 0:00:10.5]}
39. Rb7 {[%clk 0:00:09.9]} 39... h5 {[%clk 0:00:10.9]} 40. Qxe6 {[%clk
0:00:10.7]} 40... Kg7 {[%clk 0:00:11.8]} 41. Qe5+ {[%clk 0:00:11.5]} 41... Kg8
{[%clk 0:00:12.9]} 42. Rb8+ {[%clk 0:00:10.8]} 42... Rxb8+ {[%clk 0:00:14.1]}
43. Qxb8+ {[%clk 0:00:12.6]} 43... Kh7 {[%clk 0:00:15.8]} 44. Qe5 {[%clk
0:00:13.1]} 44... Qf3 {[%clk 0:00:16.7]} 45. d5 {[%clk 0:00:14]} 45... Qf2
{[%clk 0:00:16.9]} 46. d6 {[%clk 0:00:13.9]} 46... Qb6+ {[%clk 0:00:18.5]} 47.
Bb3 {[%clk 0:00:15]} 47... Qf2+ {[%clk 0:00:19.4]} 48. Ka3 {[%clk 0:00:16.2]}
48... Qa7+ {[%clk 0:00:21.1]} 49. Kb4 {[%clk 0:00:16.3]} 49... Qb6+ {[%clk
0:00:22.1]} 50. Kc4 {[%clk 0:00:17]} 50... Qc6+ {[%clk 0:00:23.5]} 51. Qc5
{[%clk 0:00:16.6]} 51... Qa6+ {[%clk 0:00:23.2]} 52. Kd4 {[%clk 0:00:15.4]}
52... Qb7 {[%clk 0:00:23.8]} 53. Bd5 {[%clk 0:00:14.4]} 53... Qd7 {[%clk
0:00:24.9]} 54. Qc7 {[%clk 0:00:13.9]} 54... Qg4+ {[%clk 0:00:26.5]} 55. Kc5
{[%clk 0:00:15.3]} 55... Qxg3 {[%clk 0:00:27.8]} 56. Qxf7+ {[%clk 0:00:15.2]}
56... Kh6 {[%clk 0:00:29.5]} 57. Qf8+ {[%clk 0:00:14.1]} 57... Kg5 {[%clk
0:00:30.1]} 58. Qe7+ {[%clk 0:00:13.6]} 58... Kh6 {[%clk 0:00:31.1]} 59. d7
{[%clk 0:00:14]} 59... Qxc3+ {[%clk 0:00:32.2]} 60. Kd6 {[%clk 0:00:12.5]} 60...
Qa3+ {[%clk 0:00:25.2]} 61. Ke6 {[%clk 0:00:12.1]} 61... Qe3+ {[%clk 0:00:25.1]}
62. Kf7 {[%clk 0:00:11.2]} 1-0

[Event "*** Titled Tuesday 3|2 Blitz"]
[Site "Chess.com"]
[Date "2015.02.24"]
[Round "4"]
[White "igorkovalenko"]
[Black "IMRosen"]
[Result "0-1"]
[WhiteElo "2436"]
[BlackElo "2076"]
[TimeControl "180+2"]
[EndTime "11:49:14 PST"]
[Termination "IMRosen won by resignation"]

1. d4 {[%clk 0:03:00]} 1... d5 {[%clk 0:02:57.7]} 2. Nf3 {[%clk 0:03:01.9]} 2...
Nf6 {[%clk 0:02:58.5]} 3. c4 {[%clk 0:03:03.2]} 3... e6 {[%clk 0:03:00]} 4. Nc3
{[%clk 0:03:04.6]} 4... Be7 {[%clk 0:03:01.6]} 5. Bf4 {[%clk 0:03:05]} 5... O-O
{[%clk 0:02:58.7]} 6. e3 {[%clk 0:03:06.3]} 6... Nbd7 {[%clk 0:02:59.5]} 7. c5
{[%clk 0:03:07.8]} 7... Nh5 {[%clk 0:02:59.2]} 8. Bd3 {[%clk 0:03:08.5]} 8...
Nxf4 {[%clk 0:02:57.7]} 9. exf4 {[%clk 0:03:10.4]} 9... c6 {[%clk 0:02:58.9]}
10. O-O {[%clk 0:03:11.2]} 10... b6 {[%clk 0:03:00.3]} 11. b4 {[%clk 0:03:12.7]}
11... a5 {[%clk 0:03:01.5]} 12. a3 {[%clk 0:03:14.3]} 12... Ba6 {[%clk
0:02:58.6]} 13. Bxa6 {[%clk 0:03:09.4]} 13... Rxa6 {[%clk 0:03:00.5]} 14. Qd3
{[%clk 0:03:03.9]} 14... b5 {[%clk 0:02:56]} 15. g3 {[%clk 0:03:03.2]} 15... Qc7
{[%clk 0:02:49]} 16. Rab1 {[%clk 0:03:03.7]} 16... axb4 {[%clk 0:02:48.9]} 17.
axb4 {[%clk 0:03:05.6]} 17... Rfa8 {[%clk 0:02:50.3]} 18. Kg2 {[%clk 0:03:06.2]}
18... Bf6 {[%clk 0:02:51]} 19. h4 {[%clk 0:03:06.8]} 19... Ra3 {[%clk
0:02:51.1]} 20. Qc2 {[%clk 0:03:08.3]} 20... g6 {[%clk 0:02:26.3]} 21. Rfe1
{[%clk 0:03:09.2]} 21... Bg7 {[%clk 0:02:27.1]} 22. Ne5 {[%clk 0:02:54.6]} 22...
Nxe5 {[%clk 0:02:13.4]} 23. fxe5 {[%clk 0:02:56.5]} 23... Qa7 {[%clk 0:02:05.1]}
24. h5 {[%clk 0:02:53.3]} 24... Rf8 {[%clk 0:01:59.7]} 25. Rh1 {[%clk
0:02:52.9]} 25... Ra8 {[%clk 0:01:43.9]} 26. Qd2 {[%clk 0:02:49.3]} 26... Qb8
{[%clk 0:01:40.9]} 27. Nd1 {[%clk 0:02:30.2]} 27... Ra2 {[%clk 0:01:38.2]} 28.
Qf4 {[%clk 0:02:29.4]} 28... Qf8 {[%clk 0:01:20.6]} 29. Qh4 {[%clk 0:02:25.7]}
29... Qd8 {[%clk 0:01:11]} 30. Qg4 {[%clk 0:02:25.2]} 30... R8a3 {[%clk
0:01:09.7]} 31. Kg1 {[%clk 0:02:13.1]} 31... f5 {[%clk 0:01:07.7]} 32. Qh3
{[%clk 0:01:50.9]} 32... Qg5 {[%clk 0:01:01]} 33. hxg6 {[%clk 0:01:51.6]} 33...
hxg6 {[%clk 0:00:57.2]} 34. Kg2 {[%clk 0:01:44.9]} 34... Kf7 {[%clk 0:00:53.1]}
35. Qh4 {[%clk 0:01:44.8]} 35... Qxh4 {[%clk 0:00:44.2]} 36. Rxh4 {[%clk
0:01:46.7]} 36... Rd3 {[%clk 0:00:45.6]} 37. Kf1 {[%clk 0:01:40.1]} 37... g5
{[%clk 0:00:44.4]} 38. Rh1 {[%clk 0:01:29]} 38... Rxd4 {[%clk 0:00:44.5]} 39.
Ne3 {[%clk 0:01:29]} 39... Bxe5 {[%clk 0:00:42.4]} 40. Rh7+ {[%clk 0:01:27.4]}
40... Bg7 {[%clk 0:00:43.2]} 41. Re1 {[%clk 0:01:28.1]} 41... Kg6 {[%clk
0:00:37.8]} 42. Rh2 {[%clk 0:01:27.8]} 42... Rdd2 {[%clk 0:00:37.4]} 43. Kg1
{[%clk 0:01:20.8]} 43... e5 {[%clk 0:00:38]} 44. g4 {[%clk 0:01:21.3]} 44...
fxg4 {[%clk 0:00:35.4]} 45. Nxg4 {[%clk 0:01:21.5]} 45... e4 {[%clk 0:00:37.1]}
46. Rg2 {[%clk 0:01:22.5]} 46... Bd4 {[%clk 0:00:34.8]} 47. Rh2 {[%clk
0:01:16.3]} 47... Kf5 {[%clk 0:00:32.3]} 48. Rg2 {[%clk 0:01:10.1]} 48... Rab2
{[%clk 0:00:30.7]} 49. Rf1 {[%clk 0:01:09.3]} 49... Rxb4 {[%clk 0:00:28.9]} 50.
Nh6+ {[%clk 0:01:00.3]} 50... Kg6 {[%clk 0:00:28.1]} 51. Ng8 {[%clk 0:01:00.6]}
51... Bxc5 {[%clk 0:00:27.6]} 52. Kh2 {[%clk 0:01:00.2]} 52... Rbb2 {[%clk
0:00:24]} 53. Rc1 {[%clk 0:00:59.2]} 53... Rxf2 {[%clk 0:00:17.4]} 54. Rxf2
{[%clk 0:01:00.3]} 54... Rxf2+ {[%clk 0:00:19.3]} 55. Kg3 {[%clk 0:01:01.7]}
55... Rf3+ {[%clk 0:00:20.6]} 56. Kg2 {[%clk 0:01:00.3]} 56... Rf2+ {[%clk
0:00:21]} 57. Kg3 {[%clk 0:01:01.4]} 57... Rf3+ {[%clk 0:00:20.9]} 58. Kg2
{[%clk 0:01:02.9]} 58... Be3 {[%clk 0:00:13.8]} 59. Rxc6+ {[%clk 0:01:03.7]}
59... Kf7 {[%clk 0:00:14.4]} 60. Nh6+ {[%clk 0:01:03.5]} 60... Ke7 {[%clk
0:00:15.8]} 61. Ng4 {[%clk 0:01:03.4]} 61... Bd4 {[%clk 0:00:15.3]} 62. Rg6
{[%clk 0:01:00.8]} 62... Rf5 {[%clk 0:00:12.1]} 63. Nh6 {[%clk 0:00:59.4]} 63...
Rf8 {[%clk 0:00:10.5]} 64. Ng4 {[%clk 0:00:53.7]} 64... b4 {[%clk 0:00:09.7]}
65. Rxg5 {[%clk 0:00:55]} 65... Kd6 {[%clk 0:00:09.6]} 66. Nh6 {[%clk
0:00:51.4]} 66... b3 {[%clk 0:00:09.3]} 67. Nf5+ {[%clk 0:00:52.8]} 67... Rxf5
{[%clk 0:00:10.1]} 68. Rxf5 {[%clk 0:00:53.7]} 68... b2 {[%clk 0:00:11.8]} 69.
Rf1 {[%clk 0:00:54.8]} 69... Kc5 {[%clk 0:00:13.5]} 70. Kg3 {[%clk 0:00:55.6]}
70... Kc4 {[%clk 0:00:13.6]} 71. Kf4 {[%clk 0:00:57.2]} 71... Kc3 {[%clk
0:00:14.4]} 72. Kf5 {[%clk 0:00:58.6]} 72... Kc2 {[%clk 0:00:14.9]} 73. Ke6
{[%clk 0:01:00.2]} 73... b1=Q {[%clk 0:00:14.9]} 74. Rxb1 {[%clk 0:01:01.7]}
74... Kxb1 {[%clk 0:00:16.8]} 75. Kxd5 {[%clk 0:01:03.6]} 75... e3 {[%clk
0:00:18.2]} 0-1